Cogmind - Beta 17 @@@ ROGUE MODE // 2026.07.03 @ 20:11:33 Player: NeoBioHazard Result: Destroyed by X-62 Marksman with Gauss Rifle Performance ------------- Evolutions (3) 1500 Regions Visited (4) 800 Robots Destroyed (93) 465 Value Destroyed (2590) 2590 Prototype IDs (1) 20 Alien Tech Used (0) 0 Bonus (0) 0 TOTAL SCORE: 5375 Bonus ------- None Cogmind --------- Core Integrity 0/700 Matter 289/300 Energy 100/100 System Corruption 2% Temperature Cool (52) Movement Core (400) Ox7 Location -7/Factory Parts ------- > --- POWER (1) -------- (None) > --- PROPULSION (3) --- (None) > --- UTILITY (5) ------ Large Storage Unit Advanced Targeting Computer > --- WEAPON (4) ------- Flak Gun > --- INVENTORY (15) --- Improved Ion Engine Improved Ion Engine Medium Matter Pod (100) Medium Matter Pod (100) Missile Launcher Peak State ------------ > --- POWER ------------ Deuterium Engine > --- PROPULSION ------- Light Treads Improved Treads Advanced Treads > --- UTILITY ---------- Large Storage Unit Advanced Targeting Computer Recoil Stabilizer Heavy Armor Plating > --- WEAPON ----------- Heavy Assault Rifle Improved Assault Rifle High-powered Shotgun Flak Gun > --- INVENTORY -------- Improved Ion Engine Improved Ion Engine Improved Ion Engine Light Treads Light Treads Light Treads Medium Matter Pod Medium Matter Pod Target Analyzer Heavy Armor Plating Heavy Assault Rifle Heavy Assault Rifle Improved Assault Rifle Missile Launcher [Rating: 37] Favorites ----------- Power Improved Ion Engine Engine Improved Ion Engine Propulsion Light Treads Treads Light Treads Utility Large Storage Unit Device Recoil Stabilizer Storage Large Storage Unit Processor Advanced Targeting Computer Protection Heavy Armor Plating Weapon Improved Assault Rifle Ballistic Gun Improved Assault Rifle Build | -11 -10 -9 -8 -7 ------- Run | Yrd Mat Mat Mat Fac Slots Evolved 6 | . . 2 2 2 Power . | . . . . . Propulsion 1 | . . 1 . . Utility 3 | . . 1 1 1 Weapon 2 | . . . 1 1 Parts Attached 48 | 7 5 13 10 13 Power 8 | 2 . 3 1 2 Engine 8 | 2 . 3 1 2 Core . | . . . . . Reactor . | . . . . . Propulsion 12 | 2 1 5 3 1 Treads 12 | 2 1 5 3 1 Leg . | . . . . . Wheel . | . . . . . Hover . | . . . . . Flight . | . . . . . Utility 14 | 1 3 2 4 4 Device 2 | . . . 1 1 Storage 3 | 1 1 . 1 . Processor 2 | . . . . 2 Hackware . | . . . . . Protection 7 | . 2 2 2 1 Artifact . | . . . . . Weapon 14 | 2 1 3 2 6 Energy Gun . | . . . . . Energy Cannon . | . . . . . Ballistic Gun 14 | 2 1 3 2 6 Ballistic Cannon . | . . . . . Launcher . | . . . . . Special Weapon . | . . . . . Impact Weapon . | . . . . . Slashing Weapon . | . . . . . Piercing Weapon . | . . . . . Special Melee Weapon . | . . . . . Unidentified Prototypes 1 | . . 1 . . Parts Lost 25 | . . . 1 24 Power 2 | . . . . 2 Propulsion 7 | . . . . 7 Utility 6 | . . . 1 5 Weapon 10 | . . . . 10 Highest Loss Streak 12 | . . . 1 12 To Critical Strikes . | . . . . . Average Backups 10 | 1 4 10 13 10 Power 1 | . 1 1 2 2 Propulsion 1 | . . 1 3 2 Utility 2 | . 1 3 3 3 Weapon 3 | . 1 4 4 2 Tool/Special . | . . . . . Unused Backups 7 | . . 2 1 4 Power 3 | . . 1 . 2 Propulsion . | . . . . . Utility 1 | . . . . 1 Weapon 3 | . . 1 1 1 Tool/Special . | . . . . . Average Slot Usage (%) 90 | . 96 91 89 84 Engine 9 | . 14 11 9 6 Treads 27 | . 28 33 27 19 Device 3 | . . . 7 6 Storage 10 | . 14 11 9 7 Processor 1 | . . . . 7 Protection 10 | . 10 14 9 5 Ballistic Gun 25 | . 28 22 27 28 Peak Build Rating 37 | 6 7 21 30 37 Average Rating 21 | 4 6 16 28 30 On Entrance 12 | . 6 7 21 30 Avg Prop Armor Cover (%) . | . . . . . Naked Turns . | . . . . . Heaviest Build 58 | 13 32 48 58 58 Greatest Support 65 | 40 40 63 65 65 Greatest Overweight (x) 10 | 1 . . . 10 Average Overweight (x) . | . . . . . Largest Inventory Capacity 15 | 8 15 15 15 15 Average Capacity 14 | 6 14 15 15 15 Most Carried 15 | 2 6 15 15 15 Average Carried 10 | 1 4 11 14 11 Final Capacity 15 | 8 15 15 15 15 Final Carried 15 | 2 6 15 15 5 Class Distribution -------------------- 32% | Mutant 24% | Tank 17% | Scavenger-Mutant 14% | Gunner 9% | Scavenger-Gunner Dominant Class ---------------- Mutant | -10/Materials Scavenger-Mutant | -9/Materials Tank | -8/Materials Gunner | -7/Factory Resources | -11 -10 -9 -8 -7 ----------- Run | Yrd Mat Mat Mat Fac Matter Collected 2718 | 189 458 679 599 793 Remotely . | . . . . . Salvage Created 3692 | . 462 1018 988 1224 Parts 208 | . 31 50 46 81 Haulers Intercepted 6 | . 1 3 . 2 Recyclers Shooed 3 | . . 1 1 1 Parts Field Recycled . | . . . . . Retrieved Matter . | . . . . . Parts Self-Destructed . | . . . . . Prevented . | . . . . . Parts Restored . | . . . . . Kills | -11 -10 -9 -8 -7 ------- Run | Yrd Mat Mat Mat Fac Combat Hostiles Destroyed 60 | . 9 17 15 19 Guns 60 | . 9 17 15 19 Classes Destroyed 15 | . 6 4 1 4 Worker 10 | . 1 2 3 4 Builder 3 | . . . . 3 Tunneler 1 | . 1 . . . Hauler 6 | . 1 3 . 2 Recycler 7 | . 1 1 3 2 Operator 1 | . . . 1 . Watcher 5 | . . 3 1 1 Swarmer 13 | . 3 3 . 7 Grunt 28 | . 6 9 9 4 Brawler 2 | . . 1 1 . Duelist 1 | . . 1 . . Sentry 9 | . . 3 5 1 Specialist 5 | . . . . 5 Programmer 1 | . . . . 1 Heavy 1 | . . . . 1 Best Kill Streak 7 | . 4 5 7 6 Combat Bots Only 5 | . 3 4 3 5 Max Kills in Single Turn 3 | . 1 1 3 3 Gunslinging 1 | . . . . 1 Exploded . | . . . . . Melee . | . . . . . Uniques/NPCs Destroyed . | . . . . . Combat | -11 -10 -9 -8 -7 -------- Run | Yrd Mat Mat Mat Fac Hostile Shots Fired 353 | . 31 62 44 216 Missed 99 | . 6 12 9 72 Hits 254 | . 25 50 35 144 Melee 2 | . . 2 . . Projectile 252 | . 25 48 35 144 AOE 2 | . . . . 2 Critical Strikes 6 | . 1 1 1 3 Damage Taken 4551 | . 292 618 562 3079 Core 763 | . 19 34 . 710 Absorbed by Shields . | . . . . . Core Remaining (%) 95 | 100 92 91 100 . Volleys Fired 222 | . 42 73 50 57 Largest 4 | . 2 2 3 4 Hottest 107 | . 40 46 71 107 Shots Fired 599 | . 84 146 150 219 Gun 599 | . 84 146 150 219 Cannon . | . . . . . Launcher . | . . . . . Special . | . . . . . Kinetic 599 | . 84 146 150 219 Thermal . | . . . . . Explosive . | . . . . . Electromagnetic . | . . . . . Robot Hit Streak 33 | . 5 33 27 20 Robot Miss Streak 7 | . 6 4 3 7 Penetration Max . | . . . . . Secondary Targets 11 | . 1 3 1 6 Max Gunslinging Chain 1 | . 1 1 1 1 Shots Hit Robots 421 | . 45 102 116 158 Core Hits 190 | . 18 39 53 80 Critical Kills 2 | . . 1 . 1 Critical Parts Destroyed 1 | . . . . 1 Critical Strikes 3 | . . 1 . 2 Destroy 3 | . . 1 . 2 Melee Attacks . | . . . . . Impact . | . . . . . Slashing . | . . . . . Piercing . | . . . . . Sneak Attacks . | . . . . . Combat Hostiles . | . . . . . Follow-up Attacks . | . . . . . Damage Inflicted 6810 | . 597 1601 1862 2750 Guns 6799 | . 590 1601 1858 2750 Cannons . | . . . . . Explosions . | . . . . . Melee . | . . . . . Ramming 11 | . 7 . 4 . Kinetic 6799 | . 590 1601 1858 2750 Thermal . | . . . . . Explosive . | . . . . . Electromagnetic . | . . . . . Impact . | . . . . . Slashing . | . . . . . Piercing . | . . . . . Highest Corruption 1 | . . . . 1 Average Corruption 1 | . . . . 1 Corruption Purged . | . . . . . Corruption Blocked . | . . . . . Effects 1 | . . . . 1 Heat Flow Errors 1 | . . . . 1 Overload Shots . | . . . . . Overflow Damage . | . . . . . Projectiles . | . . . . . Explosions . | . . . . . Melee . | . . . . . Knockbacks . | . . . . . Impact . | . . . . . Kinetic . | . . . . . Secondary . | . . . . . Self-Inflicted Damage . | . . . . . Shots . | . . . . . Rammed 3 | . 2 . 1 . Targets Rammed 4 | . 3 . 1 . Kicked . | . . . . . Crushed 1 | . 1 . . . Highest Temperature 206 | . 25 45 143 206 Average Temperature 35 | . 11 16 33 48 Received Heat Transfer 906 | . 144 213 288 261 Siege Activations . | . . . . . Martial Activations . | . . . . . Shielding Activations . | . . . . . Robots Disrupted . | . . . . . Combat Hostiles . | . . . . . Robots Corrupted . | . . . . . Combat Hostiles . | . . . . . Parts Fried . | . . . . . Impact Corruptions . | . . . . . Robots Melted . | . . . . . Combat Hostiles . | . . . . . Parts Melted . | . . . . . Heat Transferred . | . . . . . Parts Sabotaged . | . . . . . Parts Stolen . | . . . . . Parts Stripped . | . . . . . Power Chain Reactions . | . . . . . Alert | -11 -10 -9 -8 -7 ------- Run | Yrd Mat Mat Mat Fac Maximum Alert Level 1 | . . . . 1 Low Security (%) 98 | 100 100 100 100 94 Level 1 1 | . . . . 5 Level 2 . | . . . . . Level 3 . | . . . . . Level 4 . | . . . . . Level 5 . | . . . . . High Security . | . . . . . Max Security . | . . . . . Peak Influence 263 | . 151 124 164 263 Initial 51 | . . 22 29 51 Average 72 | . 62 58 83 93 Influence Increases 1795 | . 260 493 449 593 Destroy 0b10 Robot/C 1200 | . 180 340 300 380 Destroy 0b10 Robot/NC 165 | . 20 45 40 60 Destroy Leader 302 | . 42 92 92 76 Successful Hack 17 | . 17 . . . Disable Machine 30 | . . 15 15 . Destroy Structure 6 | . 1 1 2 2 Lose Combat Pursuer 75 | . . . . 75 Influence Decreases 1692 | . 206 476 405 605 Entered New Map 138 | . . 32 42 64 Time Decay 1304 | . 206 444 353 301 Lost Part 250 | . . . 10 240 Squads Dispatched 14 | . 2 2 6 4 Investigation 2 | . 1 . 1 . Extermination 1 | . . . . 1 Reinforcement 8 | . 1 2 2 3 Assault . | . . . . . Garrison 3 | . . . 3 . Intercept . | . . . . . Searches Triggered . | . . . . . Construction Impeded . | . . . . . Haulers Reinforced . | . . . . . Active Scanning Responses . | . . . . . Cargo Convoy Interrupts 1 | . . . . 1 Stealth | -11 -10 -9 -8 -7 --------- Run | Yrd Mat Mat Mat Fac Distress Signals 7 | . 2 . 3 2 Communications Jammed . | . . . . . Distress Signals . | . . . . . Times Spotted 106 | . 16 23 24 43 Peak Tracking Total 11 | . 5 4 4 11 Tactical Retreats 4 | . . . . 4 Traps | -11 -10 -9 -8 -7 ------- Run | Yrd Mat Mat Mat Fac Traps Triggered 2 | . 1 . 1 . Indirectly . | . . . . . Trap Hack Attempts . | . . . . . Triggered . | . . . . . Disarmed . | . . . . . Reprogrammed . | . . . . . Reused . | . . . . . Traps Extracted . | . . . . . Installed . | . . . . . Triggered . | . . . . . Machines | -11 -10 -9 -8 -7 ---------- Run | Yrd Mat Mat Mat Fac Machines Disabled 2 | . . 1 1 . Max in Single Turn 1 | . . 1 1 . Machines Repaired . | . . . . . Machines Dismantled . | . . . . . Machines Sabotaged . | . . . . . Overloaded Fab Kills . | . . . . . Hacking | -11 -10 -9 -8 -7 --------- Run | Yrd Mat Mat Mat Fac Machines Accessed 5 | . 3 1 1 . Terminals 3 | . 3 . . . Fabricators . | . . . . . Repair Stations . | . . . . . Recycling Units . | . . . . . Scanalyzers 1 | . . 1 . . Garrison Access 1 | . . . 1 . Total Hacks 16 | . 12 2 2 . Successful 7 | . 6 1 . . Failed 8 | . 6 . 2 . Catastrophic . | . . . . . Database Lockouts 1 | . . 1 . . Manual 11 | . 11 . . . Terminals 12 | . 12 . . . Fabricators . | . . . . . Repair Stations . | . . . . . Recycling Units . | . . . . . Scanalyzers 2 | . . 2 . . Garrison Access 2 | . . . 2 . Terminal Hacks 4 | . 4 . . . Robot Analysis 1 | . 1 . . . Unreport Threat 1 | . 1 . . . Locate Traps 2 | . 2 . . . Fabricator Hacks . | . . . . . Repair Station Hacks . | . . . . . Recycling Unit Hacks . | . . . . . Scanalyzer 1 | . . 1 . . Retrieve Study 1 | . . 1 . . Garrison Access Hacks . | . . . . . Unauthorized Hacks 2 | . 2 . . . Terminals 2 | . 2 . . . Botnet 2 | . 2 . . . Fabricators . | . . . . . Repair Stations . | . . . . . Recycling Units . | . . . . . Scanalyzers . | . . . . . Garrison Access . | . . . . . Data Cores Recovered . | . . . . . Used . | . . . . . Hacking Detections 5 | . 3 1 1 . Full Trace Events 1 | . . . 1 . Feedback Events . | . . . . . Feedback Blocked . | . . . . . Robot Schematics Acquired . | . . . . . Robots Built . | . . . . . Authchips . | . . . . . Time . | . . . . . Total Robot Build Rating . | . . . . . Part Schematics Acquired . | . . . . . Parts Built . | . . . . . Authchips . | . . . . . Time . | . . . . . Total Part Build Rating . | . . . . . Part Studies Acquired 1 | . . 1 . . Parts Repaired . | . . . . . Time . | . . . . . Parts Recycled . | . . . . . Recycled Matter . | . . . . . Retrieved Matter . | . . . . . Retrieved Components . | . . . . . Parts Scanalyzed . | . . . . . Part Schematics Acquired . | . . . . . Parts Damaged . | . . . . . Bothacking | -11 -10 -9 -8 -7 ------------ Run | Yrd Mat Mat Mat Fac Used RIF Installer . | . . . . . Robots Hacked . | . . . . . Non-combat . | . . . . . Combat . | . . . . . Robot Hacks Applied . | . . . . . Relay Couplers Released . | . . . . . Fabnet Peak Effective % . | . . . . . Robots Rewired . | . . . . . Allies Hacked . | . . . . . Hacks Repelled . | . . . . . Allies | -11 -10 -9 -8 -7 -------- Run | Yrd Mat Mat Mat Fac Total Allies . | . . . . . Largest Group . | . . . . . Highest-Rated Group . | . . . . . Highest-Rated Ally . | . . . . . Total Orders . | . . . . . Ally Attacks . | . . . . . Total Damage . | . . . . . Kills . | . . . . . Allies Corrupted . | . . . . . Allies Melted . | . . . . . Intel | -11 -10 -9 -8 -7 ------- Run | Yrd Mat Mat Mat Fac Active Infowar (turns) . | . . . . . Robot Analysis Total 1 | . 1 . . . Derelict Logs Recovered . | . . . . . Drone Launches . | . . . . . Drone Recoveries . | . . . . . Exploration | -11 -10 -9 -8 -7 ------------- Run | Yrd Mat Mat Mat Fac Turns Passed 3399 | 56 553 1127 873 790 Spaces Moved 1488 | 34 247 495 415 297 Core 14 | 9 . . . 5 Treads 1474 | 25 247 495 415 292 Legs . | . . . . . Wheels . | . . . . . Hover . | . . . . . Flight . | . . . . . Fastest Speed 50 | 50 160 160 155 155 Average Speed 161 | 135 160 160 156 175 Slowest Speed 550 | 160 160 160 160 550 Overloaded Moves . | . . . . . Propulsion Burnouts . | . . . . . Robots Hopped . | . . . . . Potential Cave-ins . | . . . . . Cave-ins Triggered . | . . . . . Exploration Rate (%) 33 | 3 63 48 41 12 Regions Visited 4 Branch Regions . Pre-discovered Areas . | . . . . . Known Exits Taken . | . . . . . Unknown Exits Taken 4 | 1 1 1 1 . Scrap Searched . | . . . . . Spaces Dug . | . . . . . Terrain Destroyed . | . . . . . Melee . | . . . . . Projectile . | . . . . . AOE . | . . . . . Terrain Rammed . | . . . . . Walls Destroyed . | . . . . . Machines Disabled . | . . . . . Actions | -11 -10 -9 -8 -7 --------- Run | Yrd Mat Mat Mat Fac Total 2004 | 41 319 691 529 424 Wait 193 | . 17 88 42 46 Move 1484 | 33 246 494 414 297 Hop . | . . . . . Pick Up 19 | 1 2 8 4 4 Fast Attach 15 | 6 2 2 2 3 Attach 17 | . . 1 2 14 Detach 3 | . 1 2 . . Swap 24 | 1 4 11 6 2 Drop 23 | . 2 12 8 1 Fire 222 | . 42 73 50 57 Melee . | . . . . . Ram . | . . . . . Kick . | . . . . . Crush 4 | . 3 . 1 . Escape Stasis . | . . . . . Rewire . | . . . . . Trap . | . . . . . Miscellaneous . | . . . . . Route ------- -11/Scrapyard -10/Materials (discovered 2 exits: *Mat / [*Min]) -9/Materials (discovered 2 exits: *Mat / [*Min]) -8/Materials -7/Factory History --------- Turn | Location | Event 13 | -11/Scrapyard | Discovered new exit (range 15) 57 | -11/Scrapyard | Entered Materials 214 | -10/Materials | Discovered new exit (range 16) 316 | -10/Materials | Build established: Mutant 545 | -10/Materials | Discovered new exit (range 14) 610 | -10/Materials | Entered another Materials area 610 | -9/Materials | Evolved 2 slots: Propulsion x1, Utility x1 979 | -9/Materials | Discovered new exit (range 11) 985 | -9/Materials | Build established: Scavenger-Mutant 1208 | -9/Materials | Discovered new exit (range 5) 1304 | -9/Materials | Central database locked down 1737 | -9/Materials | Entered another Materials area 1737 | -8/Materials | Evolved 2 slots: Utility x1, Weapon x1 1808 | -8/Materials | Garrison activated, responded to threat 2272 | -8/Materials | Build established: Tank 2564 | -8/Materials | Discovered new exit (range 16) 2610 | -8/Materials | Entered Factory 2610 | -7/Factory | Evolved 2 slots: Utility x1, Weapon x1 2893 | -7/Factory | Build established: Gunner 2982 | -7/Factory | Lost 4 parts (1n1u2w) 3248 | -7/Factory | Build established: Scavenger-Gunner 3266 | -7/Factory | Core integrity fell below 50% 3325 | -7/Factory | Lost 12 parts (1p3n3u5w) 3389 | -7/Factory | Cargo convoy interrupted 3391 | -7/Factory | Core integrity fell below 20% 3400 | -7/Factory | Destroyed by X-62 Marksman with Gauss Rifle Last Messages --------------- 03391_ Slug penetrates X-62 Marksman. 03391_ K-01 Serf collects debris. 03393_ Slug penetrates Wall. 03393_ Lgt. Treads destroyed. 03393_ Critical hit (Burn: +37). 03393_ Penetrated by Slug. 03394_ X-62 Marksman destroyed. 03394_ Switching to secondary target: X-62 Marksman. 03394_ Penetrated by Slug. 03394_ Imp. Assault Rifle destroyed. 03394_ K-01 Serf collects debris. 03396_ Penetrated by Slug. 03396_ K-01 Serf collects debris. 03397_ K-01 Serf destroyed. 03397_ Penetrated by Slug. 03397_ Slug penetrates X-62 Marksman. 03398_ Lgt. Treads destroyed. 03398_ Imp. Deuterium Engine destroyed. 03400_ Flak Gun destroyed. 03400_ Penetrated by Slug. Map ----- +----------------------------------------------------+ | ?????????????# ????????# """ """ """ ### | | ??????????????? ????????# ?? """ # | | ???????????????????????????# ??"" """ """ # | | ???????????????????????????# ???" """ # | | ???????????????????????????# ???" """ """ # | | ??????????????????????###### ? """ # " | | ?????????????????????? """ """ """ # " | | ????????????????????? """ """ """ + " | | ??????????????????????? """ """ # | | ??????????????????????? [ = # " | | ????????????????????????? != # " | | ??????????????????????????## ######## " | | ??????????????????????????## %#??????# | | ?????????????????????####### #??????### | | ?????????????????????# # #????????? | | ?????????????????????#!! # #????????? | | ?????????????????????#!! =# #########? | | ?????????????????????# # # [ ? | | ?????????????????????# "" # u * # """" ? | | ?????????????????????# "" # * # """" ? | | ?????????????????????# """ # A * # """" # | | ?????????????????????# """=#%* %+=* """" # | | ?????????????????????#u"""p/|=! =#[% """" # | | ?????????????????????# =p#%=* =#= """" # | | ?????????????????????#!hx%%#= !| #% """" ? | | ?????????????????????# !%@ # !%* # # | | ?????????????????????###x### = ########## | | ?????????????????????? mh = ###??????? | | ????????????????????? k # ???????? | | ????????????????????u%k ###??????? | | ?????????????????? #u ##???????? | | ????????????????? ?# ##???????? | | ???????????????? ??###########+### #????????? | | ?????????????? ?????????????????# #????????? | | ????????????? ??????????????????# ????????? | | ?????????????? ???????????????????# ????????? | | ??????????????????????????????????+ ????????? | | ??????????????????????????????????? ????????? | | ?????????????????????????????????????????????????? | | ?????????????????????????????????????????????????? | | ?????????????????????????????????????????????????? | | ?????????????????????????????????????????????????? | | ?????????????????????????????????????????????????? | | ?????????????????????????????????????????????????? | | ?????????????????????????????????????????????????? | | ?????????????????????????????????????????????????? | | ?????????????????????????????????????????????????? | | ?????????????????????????????????????????????????? | | ?????????????????????????????????????????????????? | | ?????????????????????????????????????????????????? | +----------------------------------------------------+ Best States ------------- Heat Dissipation 34 Energy Generation 16 Energy Capacity 290 Matter Stores 300 Matter Capacity 300 Sight Range 16 Terrain Scan Density 10 Armor Coverage 825 Evasion (%) 40 Targeting Accuracy 8 Target Analysis 5 Recoil Reduction 7 Kinecelleration 30 Item Schematics ----------------- None Robot Schematics ------------------ None Fabricated ------------ Nothing Repaired ---------- Nothing Studied --------- Hvy. Assault Rifle | -9/Materials | Hacked Alien Tech Used ----------------- None Achievements -------------- None Challenges ------------ None Game ------ Seed LinkedExoskeletonCharge Manual? 0 Play Time 00:19:29 Cumulative 243.2 hours Start 2026.07.03 @ 19:51:46 End 2026.07.03 @ 20:11:33 Sessions 1 Manual Loads 0 Difficulty Rogue Special Mode None Game No. 394 Rogue 231 Adventurer 15 Explorer 148 Win Type - Total 27 Types 26/0/0/1/0/0/0/0/0/0 Lore% 65 Gallery% 64 Achievement% 57 Wizard Run 0 Options --------- Layout 0 ASCII 0 Keyboard 1 Movement Numpad Keybinds 0 Fullscreen 2 Font 18/SmallcapsGlow Map View 76x50 Zoom Use 0% Tactical HUD 1 Map Filters NONE Filters NONE Steam 1 RUN: 7ea28a8c-7c83-40e9-89f4-ec955b6f7fe2